[Event "Titled Tuesday Blitz July 11 Early 2023"]
[White "Altman, Joshua"]
[Black "Tsyhanchuk, Stanislav"]
[WhiteFideId "426210"]
[BlackFideId "13505130"]
[WhiteElo "2599"]
[BlackElo "2308"]
[Result "1-0"]
[Round "9"]
[TimeControl "180+2"]
[Date "2023.07.11"]
[WhiteClock "0:00:42"]
[BlackClock "0:00:05"]
[Board "57"]

1. Nf3 {[%clk 0:03:00]}  Nf6 {[%clk 0:02:59]} 2. b3 {[%clk 0:03:00]}  d6 {[%clk 0:02:56]} 3. d4 {[%clk 0:02:59]}  g6 {[%clk 0:02:55]} 4. Bb2 {[%clk 0:02:58]}  Bg7 {[%clk 0:02:55]} 5. g3 {[%clk 0:02:57]}  O-O {[%clk 0:02:54]} 6. Bg2 {[%clk 0:02:57]}  c5 {[%clk 0:02:52]} 7. O-O {[%clk 0:02:55]}  cxd4 {[%clk 0:02:50]} 8. Nxd4 {[%clk 0:02:54]}  Nc6 {[%clk 0:02:38]} 9. Nxc6 {[%clk 0:02:52]}  bxc6 {[%clk 0:02:37]} 10. Bxc6 {[%clk 0:02:53]}  Rb8 {[%clk 0:02:38]} 11. c4 {[%clk 0:02:46]}  Bh3 {[%clk 0:02:37]} 12. Bg2 {[%clk 0:02:45]}  Qc8 {[%clk 0:02:36]} 13. Nd2 {[%clk 0:02:37]}  h5 {[%clk 0:02:34]} 14. Nf3 {[%clk 0:02:36]}  Bxg2 {[%clk 0:02:21]} 15. Kxg2 {[%clk 0:02:37]}  a5 {[%clk 0:02:21]} 16. Rc1 {[%clk 0:02:32]}  Qe6 {[%clk 0:02:12]} 17. e3 {[%clk 0:02:17]}  Rfd8 {[%clk 0:02:02]} 18. Bxf6 {[%clk 0:02:17]}  Bxf6 {[%clk 0:01:57]} 19. Qd5 {[%clk 0:02:16]}  Qxd5 {[%clk 0:01:36]} 20. cxd5 {[%clk 0:02:17]}  Rb5 {[%clk 0:01:33]} 21. e4 {[%clk 0:02:13]}  a4 {[%clk 0:01:32]} 22. bxa4 {[%clk 0:01:58]}  Rb4 {[%clk 0:01:32]} 23. Rfe1 {[%clk 0:01:57]}  Rxa4 {[%clk 0:01:31]} 24. Rc2 {[%clk 0:01:57]}  Rda8 {[%clk 0:01:29]} 25. Ree2 {[%clk 0:01:56]}  R8a5 {[%clk 0:01:25]} 26. Rcd2 {[%clk 0:01:30]}  Rb5 {[%clk 0:01:21]} 27. e5 {[%clk 0:01:26]}  dxe5 {[%clk 0:01:18]} 28. Nxe5 {[%clk 0:01:26]}  Raa5 {[%clk 0:01:13]} 29. Nc6 {[%clk 0:01:19]}  Ra6 {[%clk 0:00:32]} 30. Nxe7+ {[%clk 0:01:18]}  Kf8 {[%clk 0:00:32]} 31. Nc6 {[%clk 0:01:13]}  Bc3 {[%clk 0:00:25]} 32. Rd3 {[%clk 0:01:10]}  Bf6 {[%clk 0:00:21]} 33. Rde3 {[%clk 0:01:03]}  Rxd5 {[%clk 0:00:20]} 34. Nb4 {[%clk 0:01:03]}  Rad6 {[%clk 0:00:17]} 35. Nxd5 {[%clk 0:01:03]}  Rxd5 {[%clk 0:00:18]} 36. a4 {[%clk 0:01:02]}  Ra5 {[%clk 0:00:18]} 37. Ra2 {[%clk 0:01:02]}  Be7 {[%clk 0:00:17]} 38. Rb3 {[%clk 0:01:02]}  Rf5 {[%clk 0:00:13]} 39. Rb5 {[%clk 0:01:02]}  Rf6 {[%clk 0:00:13]} 40. a5 {[%clk 0:01:01]}  Ra6 {[%clk 0:00:12]} 41. Rb6 {[%clk 0:01:01]}  Ra7 {[%clk 0:00:13]} 42. a6 {[%clk 0:01:01]}  Bc5 {[%clk 0:00:12]} 43. Rb7 {[%clk 0:01:02]}  Ra8 {[%clk 0:00:13]} 44. a7 {[%clk 0:01:00]}  Kg7 {[%clk 0:00:12]} 45. Ra5 {[%clk 0:00:56]}  Bd4 {[%clk 0:00:11]} 46. Rd7 {[%clk 0:00:54]}  Bb6 {[%clk 0:00:11]} 47. Ra6 {[%clk 0:00:54]}  Bc5 {[%clk 0:00:11]} 48. Kf3 {[%clk 0:00:52]}  Kg8 {[%clk 0:00:06]} 49. Rb7 {[%clk 0:00:48]}  Kg7 {[%clk 0:00:06]} 50. Ke2 {[%clk 0:00:47]}  Bd4 {[%clk 0:00:06]} 51. f3 {[%clk 0:00:46]}  Bc5 {[%clk 0:00:06]} 52. Kd3 {[%clk 0:00:46]}  Bg1 {[%clk 0:00:06]} 53. h3 {[%clk 0:00:46]}  Bf2 {[%clk 0:00:06]} 54. g4 {[%clk 0:00:46]}  h4 {[%clk 0:00:06]} 55. Kc4 {[%clk 0:00:46]}  g5 {[%clk 0:00:05]} 56. Kb5 {[%clk 0:00:46]}  Rd8 {[%clk 0:00:04]} 57. Rb8 {[%clk 0:00:45]}  Rd5+ {[%clk 0:00:05]} 58. Kc4 {[%clk 0:00:44]}  Bxa7 {[%clk 0:00:05]} 59. Rxa7 {[%clk 0:00:44]}  Rd2 {[%clk 0:00:05]} 60. Rbb7 {[%clk 0:00:44]}  Rh2 {[%clk 0:00:05]} 61. Rxf7+ {[%clk 0:00:44]}  Kg6 {[%clk 0:00:05]} 62. Rfb7 {[%clk 0:00:43]}  Rxh3 {[%clk 0:00:05]} 63. Ra6# {[%clk 0:00:42]} 1-0


[Site "https://www.chess.com"]

[Event "Titled Tuesday Blitz July 11 Early 2023"]
[White "Dau Khuong Duy"]
[Black "Lopez Idarraga, Daniel Eduardo"]
[WhiteFideId "12424722"]
[BlackFideId "4405501"]
[WhiteElo "2876"]
[BlackElo "2362"]
[Result "1-0"]
[Round "9"]
[TimeControl "180+2"]
[Date "2023.07.11"]
[WhiteClock "0:01:42"]
[BlackClock "0:00:33"]
[Board "58"]

1. e4 {[%clk 0:03:00]}  c5 {[%clk 0:02:59]} 2. Nf3 {[%clk 0:03:00]}  Nc6 {[%clk 0:02:54]} 3. Bb5 {[%clk 0:03:00]}  g6 {[%clk 0:02:52]} 4. O-O {[%clk 0:03:00]}  Bg7 {[%clk 0:02:49]} 5. Bxc6 {[%clk 0:02:59]}  dxc6 {[%clk 0:02:48]} 6. d3 {[%clk 0:02:59]}  e5 {[%clk 0:02:47]} 7. h3 {[%clk 0:02:59]}  Qe7 {[%clk 0:02:45]} 8. a4 {[%clk 0:02:54]}  Nf6 {[%clk 0:02:41]} 9. Nbd2 {[%clk 0:02:46]}  Nd7 {[%clk 0:02:40]} 10. Nc4 {[%clk 0:02:46]}  Nf8 {[%clk 0:02:38]} 11. c3 {[%clk 0:02:44]}  f6 {[%clk 0:02:30]} 12. b4 {[%clk 0:02:43]}  Be6 {[%clk 0:02:27]} 13. Ba3 {[%clk 0:02:31]}  O-O-O {[%clk 0:02:12]} 14. Qc2 {[%clk 0:02:23]}  Bxc4 {[%clk 0:02:07]} 15. dxc4 {[%clk 0:02:24]}  Ne6 {[%clk 0:02:04]} 16. a5 {[%clk 0:02:23]}  Nf4 {[%clk 0:01:52]} 17. a6 {[%clk 0:02:20]}  Rd3 {[%clk 0:01:13]} 18. axb7+ {[%clk 0:02:12]}  Kb8 {[%clk 0:01:13]} 19. Kh2 {[%clk 0:02:04]}  Rxf3 {[%clk 0:01:11]} 20. Bc1 {[%clk 0:01:53]}  Qe6 {[%clk 0:00:39]} 21. Bxf4 {[%clk 0:01:48]}  Rxf4 {[%clk 0:00:38]} 22. Qa4 {[%clk 0:01:45]}  Kc7 {[%clk 0:00:35]} 23. Qa5+ {[%clk 0:01:45]}  Kd7 {[%clk 0:00:33]} 24. Qxa7 {[%clk 0:01:42]} 1-0


[Site "https://www.chess.com"]

[Event "Titled Tuesday Blitz July 11 Early 2023"]
[White "Hilary46"]
[Black "Shubenkova, Veronika"]
[BlackFideId "44124040"]
[WhiteElo "2745"]
[BlackElo "2545"]
[Result "0-1"]
[Round "9"]
[TimeControl "180+2"]
[Date "2023.07.11"]
[WhiteClock "0:00:05"]
[BlackClock "0:01:45"]
[Board "59"]

1. e4 {[%clk 0:02:57]}  e6 {[%clk 0:02:59]} 2. d4 {[%clk 0:02:56]}  d5 {[%clk 0:03:00]} 3. Nc3 {[%clk 0:02:57]}  Nf6 {[%clk 0:03:00]} 4. e5 {[%clk 0:02:58]}  Nfd7 {[%clk 0:02:59]} 5. f4 {[%clk 0:02:58]}  c5 {[%clk 0:02:58]} 6. Nf3 {[%clk 0:02:59]}  cxd4 {[%clk 0:02:58]} 7. Be3 {[%clk 0:03:00]}  Nc6 {[%clk 0:02:59]} 8. Nxd4 {[%clk 0:02:59]}  Bc5 {[%clk 0:02:59]} 9. Qd2 {[%clk 0:02:59]}  Nxd4 {[%clk 0:02:59]} 10. Bxd4 {[%clk 0:02:59]}  a6 {[%clk 0:03:00]} 11. O-O-O {[%clk 0:02:56]}  Qc7 {[%clk 0:03:00]} 12. h4 {[%clk 0:02:34]}  b5 {[%clk 0:02:59]} 13. h5 {[%clk 0:02:34]}  Bb7 {[%clk 0:02:59]} 14. h6 {[%clk 0:02:30]}  g6 {[%clk 0:02:59]} 15. Kb1 {[%clk 0:02:25]}  O-O-O {[%clk 0:02:58]} 16. Ne2 {[%clk 0:02:21]}  Kb8 {[%clk 0:02:56]} 17. g3 {[%clk 0:02:19]}  Nb6 {[%clk 0:02:53]} 18. Bxc5 {[%clk 0:02:18]}  Qxc5 {[%clk 0:02:54]} 19. Nd4 {[%clk 0:02:19]}  Nc4 {[%clk 0:02:54]} 20. Qc3 {[%clk 0:01:59]}  Rc8 {[%clk 0:02:50]} 21. Be2 {[%clk 0:01:48]}  b4 {[%clk 0:02:42]} 22. Qf3 {[%clk 0:01:42]}  Rc7 {[%clk 0:02:36]} 23. Rhf1 {[%clk 0:01:36]}  Rhc8 {[%clk 0:02:34]} 24. Qf2 {[%clk 0:01:36]}  a5 {[%clk 0:02:31]} 25. Bxc4 {[%clk 0:01:34]}  dxc4 {[%clk 0:02:28]} 26. Nf3 {[%clk 0:01:28]}  Qb5 {[%clk 0:02:25]} 27. Ng5 {[%clk 0:01:24]}  c3 {[%clk 0:02:23]} 28. b3 {[%clk 0:01:24]}  a4 {[%clk 0:02:23]} 29. Rd6 {[%clk 0:01:14]}  axb3 {[%clk 0:02:23]} 30. axb3 {[%clk 0:01:13]}  Qa5 {[%clk 0:02:18]} 31. Qe3 {[%clk 0:01:11]}  Rc6 {[%clk 0:01:58]} 32. Rxc6 {[%clk 0:01:08]}  Rxc6 {[%clk 0:01:58]} 33. Qd3 {[%clk 0:00:15]}  Ra6 {[%clk 0:01:45]} 34. Qxa6 {[%clk 0:00:08]}  Qxa6 {[%clk 0:01:45]} 35. Rd1 {[%clk 0:00:06]}  Qa3 {[%clk 0:01:45]} 36. Rd8+ {[%clk 0:00:05]}  Bc8 {[%clk 0:01:44]} 37. Rxc8+ {[%clk 0:00:04]}  Kxc8 {[%clk 0:01:44]} 38. Nxf7 {[%clk 0:00:05]}  Qb2# {[%clk 0:01:45]} 0-1


[Site "https://www.chess.com"]

[Event "Titled Tuesday Blitz July 11 Early 2023"]
[White "Shuvalova, Polina"]
[Black "Fiorito, Francisco"]
[WhiteFideId "24171760"]
[BlackFideId "180165"]
[WhiteElo "2674"]
[BlackElo "2548"]
[Result "1-0"]
[Round "9"]
[TimeControl "180+2"]
[Date "2023.07.11"]
[WhiteClock "0:00:11"]
[BlackClock "0:00:03"]
[Board "60"]

1. e4 {[%clk 0:03:00]}  e5 {[%clk 0:02:58]} 2. Nf3 {[%clk 0:02:54]}  Nf6 {[%clk 0:02:58]} 3. Nc3 {[%clk 0:02:53]}  Bb4 {[%clk 0:02:57]} 4. Nxe5 {[%clk 0:02:50]}  O-O {[%clk 0:02:57]} 5. Nd3 {[%clk 0:02:46]}  Bxc3 {[%clk 0:02:57]} 6. dxc3 {[%clk 0:02:47]}  Nxe4 {[%clk 0:02:58]} 7. Be2 {[%clk 0:02:43]}  Re8 {[%clk 0:02:57]} 8. O-O {[%clk 0:02:42]}  h6 {[%clk 0:02:56]} 9. f3 {[%clk 0:02:40]}  Nf6 {[%clk 0:02:55]} 10. Re1 {[%clk 0:02:37]}  d6 {[%clk 0:02:55]} 11. Bf1 {[%clk 0:02:37]}  Nc6 {[%clk 0:02:52]} 12. Bd2 {[%clk 0:02:37]}  Bf5 {[%clk 0:02:50]} 13. Rxe8+ {[%clk 0:02:35]}  Qxe8 {[%clk 0:02:49]} 14. Qe1 {[%clk 0:02:36]}  Qd7 {[%clk 0:02:47]} 15. Qg3 {[%clk 0:02:30]}  Kh7 {[%clk 0:02:39]} 16. c4 {[%clk 0:02:22]}  Qd8 {[%clk 0:01:59]} 17. Bc3 {[%clk 0:02:18]}  Nh5 {[%clk 0:02:00]} 18. Qf2 {[%clk 0:02:16]}  Bg6 {[%clk 0:01:52]} 19. Re1 {[%clk 0:02:14]}  d5 {[%clk 0:01:08]} 20. cxd5 {[%clk 0:02:05]}  Qxd5 {[%clk 0:01:07]} 21. g4 {[%clk 0:02:06]}  Nf6 {[%clk 0:01:06]} 22. Nf4 {[%clk 0:02:06]}  Qxa2 {[%clk 0:01:02]} 23. h4 {[%clk 0:02:05]}  Kh8 {[%clk 0:00:47]} 24. Nxg6+ {[%clk 0:01:59]}  fxg6 {[%clk 0:00:48]} 25. Bd3 {[%clk 0:01:59]}  Qf7 {[%clk 0:00:47]} 26. g5 {[%clk 0:01:38]}  hxg5 {[%clk 0:00:44]} 27. hxg5 {[%clk 0:01:36]}  Nh5 {[%clk 0:00:44]} 28. Qh4 {[%clk 0:01:24]}  Re8 {[%clk 0:00:35]} 29. Rxe8+ {[%clk 0:01:19]}  Qxe8 {[%clk 0:00:35]} 30. Be4 {[%clk 0:01:19]}  Qf7 {[%clk 0:00:30]} 31. Qg4 {[%clk 0:01:17]}  Qe8 {[%clk 0:00:21]} 32. Kf2 {[%clk 0:01:00]}  a6 {[%clk 0:00:11]} 33. Qg1 {[%clk 0:00:52]}  b5 {[%clk 0:00:07]} 34. b3 {[%clk 0:00:43]}  b4 {[%clk 0:00:06]} 35. Bb2 {[%clk 0:00:43]}  Ne5 {[%clk 0:00:06]} 36. Qe1 {[%clk 0:00:34]}  Nd7 {[%clk 0:00:04]} 37. Bd4 {[%clk 0:00:30]}  c5 {[%clk 0:00:04]} 38. Bb2 {[%clk 0:00:29]}  Qf7 {[%clk 0:00:05]} 39. Qd2 {[%clk 0:00:28]}  Nf4 {[%clk 0:00:04]} 40. Kg3 {[%clk 0:00:25]}  Nf8 {[%clk 0:00:04]} 41. Qxf4 {[%clk 0:00:25]}  Qe8 {[%clk 0:00:04]} 42. Qe5 {[%clk 0:00:22]}  Qf7 {[%clk 0:00:04]} 43. Bd5 {[%clk 0:00:21]}  Qd7 {[%clk 0:00:04]} 44. Bc6 {[%clk 0:00:19]}  Qf7 {[%clk 0:00:03]} 45. Be4 {[%clk 0:00:17]}  Kh7 {[%clk 0:00:03]} 46. f4 {[%clk 0:00:14]}  Nd7 {[%clk 0:00:02]} 47. Qd5 {[%clk 0:00:14]}  Qe7 {[%clk 0:00:02]} 48. Be5 {[%clk 0:00:09]}  Nf8 {[%clk 0:00:02]} 49. Qd6 {[%clk 0:00:09]}  Qf7 {[%clk 0:00:02]} 50. Bd5 {[%clk 0:00:09]}  Qe8 {[%clk 0:00:02]} 51. Qxc5 {[%clk 0:00:08]}  Qd8 {[%clk 0:00:01]} 52. Qc4 {[%clk 0:00:08]}  Qe8 {[%clk 0:00:02]} 53. Bg8+ {[%clk 0:00:08]}  Kh8 {[%clk 0:00:02]} 54. Bf7 {[%clk 0:00:09]}  Qe7 {[%clk 0:00:03]} 55. Bd5 {[%clk 0:00:10]}  Kh7 {[%clk 0:00:03]} 56. Qd4 {[%clk 0:00:10]}  Qd8 {[%clk 0:00:03]} 57. Qe4 {[%clk 0:00:11]}  Qe7 {[%clk 0:00:03]} 58. Qh1# {[%clk 0:00:11]} 1-0


[Site "https://www.chess.com"]

[Event "Titled Tuesday Blitz July 11 Early 2023"]
[White "Arat, Ufuk Sezen"]
[Black "KorolDimitriy75"]
[WhiteFideId "6309089"]
[WhiteElo "2577"]
[BlackElo "2447"]
[Result "1-0"]
[Round "9"]
[TimeControl "180+2"]
[Date "2023.07.11"]
[WhiteClock "0:00:13"]
[BlackClock "0:00:00"]
[Board "69"]

1. e4 {[%clk 0:02:57]}  c5 {[%clk 0:03:00]} 2. Nf3 {[%clk 0:02:57]}  d6 {[%clk 0:03:00]} 3. d4 {[%clk 0:02:57]}  cxd4 {[%clk 0:03:01]} 4. Nxd4 {[%clk 0:02:58]}  Nf6 {[%clk 0:03:01]} 5. Nc3 {[%clk 0:02:58]}  g6 {[%clk 0:03:02]} 6. Be3 {[%clk 0:02:57]}  Bg7 {[%clk 0:03:02]} 7. f3 {[%clk 0:02:58]}  O-O {[%clk 0:03:02]} 8. Bc4 {[%clk 0:02:59]}  Nc6 {[%clk 0:03:02]} 9. Bb3 {[%clk 0:02:59]}  Bd7 {[%clk 0:03:03]} 10. Qd2 {[%clk 0:03:00]}  Qa5 {[%clk 0:03:03]} 11. O-O-O {[%clk 0:02:58]}  Rfc8 {[%clk 0:03:03]} 12. g4 {[%clk 0:02:54]}  Ne5 {[%clk 0:03:03]} 13. h4 {[%clk 0:02:54]}  b5 {[%clk 0:03:03]} 14. g5 {[%clk 0:02:39]}  Nh5 {[%clk 0:03:01]} 15. Nd5 {[%clk 0:02:37]}  Qxd2+ {[%clk 0:02:56]} 16. Rxd2 {[%clk 0:02:37]}  Kf8 {[%clk 0:02:53]} 17. a3 {[%clk 0:02:33]}  Nc4 {[%clk 0:02:29]} 18. Bxc4 {[%clk 0:02:33]}  Rxc4 {[%clk 0:01:52]} 19. Ne2 {[%clk 0:02:33]}  Be6 {[%clk 0:00:58]} 20. Nef4 {[%clk 0:02:17]}  Nxf4 {[%clk 0:00:56]} 21. Nxf4 {[%clk 0:02:15]}  Bd7 {[%clk 0:00:55]} 22. h5 {[%clk 0:02:12]}  b4 {[%clk 0:00:42]} 23. axb4 {[%clk 0:02:06]}  Rxb4 {[%clk 0:00:42]} 24. c3 {[%clk 0:02:06]}  Rc4 {[%clk 0:00:33]} 25. Kd1 {[%clk 0:01:37]}  Be8 {[%clk 0:00:26]} 26. Ke1 {[%clk 0:01:34]}  a5 {[%clk 0:00:25]} 27. Kf2 {[%clk 0:01:31]}  a4 {[%clk 0:00:25]} 28. Ra1 {[%clk 0:01:30]}  Rb8 {[%clk 0:00:25]} 29. h6 {[%clk 0:01:23]}  Bh8 {[%clk 0:00:24]} 30. Nd5 {[%clk 0:01:22]}  e6 {[%clk 0:00:12]} 31. Nb6 {[%clk 0:01:16]}  Rc6 {[%clk 0:00:12]} 32. Ra3 {[%clk 0:00:16]}  Rcxb6 {[%clk 0:00:10]} 33. Bxb6 {[%clk 0:00:17]}  Rxb6 {[%clk 0:00:11]} 34. Ke3 {[%clk 0:00:16]}  Ke7 {[%clk 0:00:11]} 35. f4 {[%clk 0:00:16]}  Bc6 {[%clk 0:00:10]} 36. Rd1 {[%clk 0:00:14]}  f6 {[%clk 0:00:10]} 37. Rg1 {[%clk 0:00:12]}  fxg5 {[%clk 0:00:10]} 38. Rxg5 {[%clk 0:00:12]}  Bf6 {[%clk 0:00:10]} 39. Ra5 {[%clk 0:00:13]}  Rxb2 {[%clk 0:00:07]} 40. Ra7+ {[%clk 0:00:13]}  Bb7 {[%clk 0:00:04]} 41. R3xa4 {[%clk 0:00:12]}  Bxc3 {[%clk 0:00:00]} 42. Rc4 {[%clk 0:00:13]} 1-0


[Site "https://www.chess.com"]

[Event "Titled Tuesday Blitz July 11 Early 2023"]
[White "Borrmann, Laurenz"]
[Black "Yurasova, Daria"]
[WhiteFideId "312187930"]
[BlackFideId "34146919"]
[WhiteElo "2576"]
[BlackElo "2446"]
[Result "0-1"]
[Round "9"]
[TimeControl "180+2"]
[Date "2023.07.11"]
[WhiteClock "0:00:00"]
[BlackClock "0:00:07"]
[Board "70"]

1. e4 {[%clk 0:03:00]}  e5 {[%clk 0:02:54]} 2. Nf3 {[%clk 0:02:57]}  Nc6 {[%clk 0:02:54]} 3. Bc4 {[%clk 0:02:53]}  Bc5 {[%clk 0:02:52]} 4. b4 {[%clk 0:02:36]}  Bxb4 {[%clk 0:02:51]} 5. c3 {[%clk 0:02:37]}  Be7 {[%clk 0:02:51]} 6. d4 {[%clk 0:02:31]}  Na5 {[%clk 0:02:51]} 7. Be2 {[%clk 0:02:28]}  d6 {[%clk 0:02:51]} 8. O-O {[%clk 0:02:26]}  Nc6 {[%clk 0:02:49]} 9. Bc4 {[%clk 0:01:55]}  Nf6 {[%clk 0:02:47]} 10. Nbd2 {[%clk 0:01:48]}  O-O {[%clk 0:02:46]} 11. a4 {[%clk 0:01:37]}  a6 {[%clk 0:02:44]} 12. a5 {[%clk 0:01:32]}  Bg4 {[%clk 0:02:43]} 13. d5 {[%clk 0:01:32]}  Nb8 {[%clk 0:02:42]} 14. h3 {[%clk 0:01:30]}  Bh5 {[%clk 0:02:42]} 15. g4 {[%clk 0:01:29]}  Bg6 {[%clk 0:02:42]} 16. Qe2 {[%clk 0:01:25]}  Nbd7 {[%clk 0:02:42]} 17. Nh4 {[%clk 0:01:25]}  Nc5 {[%clk 0:02:40]} 18. Nf5 {[%clk 0:01:23]}  c6 {[%clk 0:02:34]} 19. dxc6 {[%clk 0:01:18]}  bxc6 {[%clk 0:02:34]} 20. Ba3 {[%clk 0:01:17]}  Bxf5 {[%clk 0:02:28]} 21. gxf5 {[%clk 0:01:13]}  Nfxe4 {[%clk 0:02:18]} 22. Nxe4 {[%clk 0:01:03]}  Nxe4 {[%clk 0:02:18]} 23. Qxe4 {[%clk 0:00:58]}  d5 {[%clk 0:02:18]} 24. Bxd5 {[%clk 0:00:58]}  cxd5 {[%clk 0:02:18]} 25. Qxe5 {[%clk 0:00:58]}  Bxa3 {[%clk 0:02:13]} 26. Rxa3 {[%clk 0:00:57]}  Qg5+ {[%clk 0:02:13]} 27. Kh2 {[%clk 0:00:56]}  Rfe8 {[%clk 0:02:12]} 28. Qxd5 {[%clk 0:00:55]}  Rad8 {[%clk 0:02:05]} 29. Qf3 {[%clk 0:00:52]}  Re5 {[%clk 0:02:03]} 30. f6 {[%clk 0:00:51]}  Rf5 {[%clk 0:01:51]} 31. Qg3 {[%clk 0:00:40]}  Qxf6 {[%clk 0:01:49]} 32. c4 {[%clk 0:00:41]}  h5 {[%clk 0:01:47]} 33. Re3 {[%clk 0:00:26]}  h4 {[%clk 0:01:46]} 34. Qg2 {[%clk 0:00:26]}  Rd2 {[%clk 0:01:38]} 35. Qa8+ {[%clk 0:00:19]}  Kh7 {[%clk 0:01:38]} 36. Qe4 {[%clk 0:00:19]}  g6 {[%clk 0:01:35]} 37. Re2 {[%clk 0:00:19]}  Rf4 {[%clk 0:01:08]} 38. Qe3 {[%clk 0:00:18]}  Rxe2 {[%clk 0:01:04]} 39. Qxe2 {[%clk 0:00:18]}  Qc6 {[%clk 0:01:00]} 40. Rc1 {[%clk 0:00:15]}  Qc5 {[%clk 0:00:54]} 41. Rc2 {[%clk 0:00:15]}  Rf5 {[%clk 0:00:47]} 42. Qe3 {[%clk 0:00:11]}  Qd6+ {[%clk 0:00:44]} 43. Kg2 {[%clk 0:00:10]}  Qc6+ {[%clk 0:00:36]} 44. Kg1 {[%clk 0:00:09]}  Rxa5 {[%clk 0:00:35]} 45. c5 {[%clk 0:00:08]}  Ra1+ {[%clk 0:00:35]} 46. Rc1 {[%clk 0:00:08]}  Ra4 {[%clk 0:00:26]} 47. Rb1 {[%clk 0:00:08]}  Re4 {[%clk 0:00:26]} 48. Qc3 {[%clk 0:00:06]}  Re7 {[%clk 0:00:09]} 49. Rb8 {[%clk 0:00:03]}  f6 {[%clk 0:00:07]} 50. Rb6 {[%clk 0:00:00]}  Qe4 {[%clk 0:00:07]} 0-1


[Site "https://www.chess.com"]

[Event "Titled Tuesday Blitz July 11 Early 2023"]
[White "Estrada Nieto, Julian"]
[Black "NovoselovRoman"]
[WhiteFideId "5101018"]
[WhiteElo "2441"]
[BlackElo "2565"]
[Result "0-1"]
[Round "9"]
[TimeControl "180+2"]
[Date "2023.07.11"]
[WhiteClock "0:00:13"]
[BlackClock "0:00:39"]
[Board "71"]

1. e4 {[%clk 0:03:00]}  d5 {[%clk 0:03:00]} 2. exd5 {[%clk 0:02:56]}  Qxd5 {[%clk 0:03:01]} 3. Nc3 {[%clk 0:02:56]}  Qd6 {[%clk 0:03:01]} 4. d4 {[%clk 0:02:57]}  Nf6 {[%clk 0:03:01]} 5. Nf3 {[%clk 0:02:57]}  c6 {[%clk 0:03:01]} 6. Ne5 {[%clk 0:02:56]}  Nbd7 {[%clk 0:03:01]} 7. Bf4 {[%clk 0:02:56]}  Nxe5 {[%clk 0:03:02]} 8. Bxe5 {[%clk 0:02:54]}  Qd8 {[%clk 0:03:01]} 9. Bd3 {[%clk 0:02:51]}  Bg4 {[%clk 0:03:00]} 10. f3 {[%clk 0:02:42]}  Bh5 {[%clk 0:03:01]} 11. Qe2 {[%clk 0:02:36]}  e6 {[%clk 0:02:59]} 12. O-O-O {[%clk 0:02:31]}  Bb4 {[%clk 0:02:53]} 13. Ne4 {[%clk 0:02:31]}  Nxe4 {[%clk 0:02:49]} 14. Bxe4 {[%clk 0:02:28]}  Bd6 {[%clk 0:02:33]} 15. Kb1 {[%clk 0:02:20]}  Bxe5 {[%clk 0:02:29]} 16. dxe5 {[%clk 0:02:19]}  Qg5 {[%clk 0:02:22]} 17. h4 {[%clk 0:01:57]}  Qe7 {[%clk 0:02:14]} 18. Rd6 {[%clk 0:01:53]}  Bg6 {[%clk 0:02:03]} 19. h5 {[%clk 0:01:49]}  Bxe4 {[%clk 0:02:03]} 20. Qxe4 {[%clk 0:01:49]}  Rd8 {[%clk 0:01:56]} 21. Rhd1 {[%clk 0:01:47]}  O-O {[%clk 0:01:52]} 22. a3 {[%clk 0:01:43]}  h6 {[%clk 0:01:48]} 23. f4 {[%clk 0:01:36]}  Qh4 {[%clk 0:01:44]} 24. Qf3 {[%clk 0:01:26]}  Rxd6 {[%clk 0:01:16]} 25. Rxd6 {[%clk 0:01:18]}  Rd8 {[%clk 0:01:17]} 26. g3 {[%clk 0:01:10]}  Qe7 {[%clk 0:01:14]} 27. Qd3 {[%clk 0:01:07]}  Rxd6 {[%clk 0:01:07]} 28. exd6 {[%clk 0:01:07]}  Qd7 {[%clk 0:01:01]} 29. c4 {[%clk 0:01:07]}  c5 {[%clk 0:00:59]} 30. b4 {[%clk 0:01:00]}  b6 {[%clk 0:00:58]} 31. Kb2 {[%clk 0:00:57]}  f5 {[%clk 0:00:58]} 32. Kb3 {[%clk 0:00:52]}  Kf7 {[%clk 0:00:57]} 33. Qd2 {[%clk 0:00:37]}  Ke8 {[%clk 0:00:52]} 34. Qc3 {[%clk 0:00:32]}  Kf7 {[%clk 0:00:44]} 35. Qe5 {[%clk 0:00:32]}  Qc6 {[%clk 0:00:44]} 36. b5 {[%clk 0:00:20]}  Qf3+ {[%clk 0:00:44]} 37. Kb2 {[%clk 0:00:18]}  Qf2+ {[%clk 0:00:42]} 38. Kb3 {[%clk 0:00:18]}  Qxg3+ {[%clk 0:00:41]} 39. Ka4 {[%clk 0:00:18]}  Qd3 {[%clk 0:00:41]} 40. d7 {[%clk 0:00:13]}  Qc2# {[%clk 0:00:39]} 0-1


[Site "https://www.chess.com"]